Cogmind - Beta 17 @@@ ROGUE MODE // 2026.06.23 @ 15:01:02 Player: Darcyisverycute Result: Destroyed by S-10 Pest with Light Assault Rifle Performance ------------- Evolutions (0) 0 Regions Visited (2) 400 Robots Destroyed (26) 130 Value Destroyed (477) 477 Prototype IDs (0) 0 Alien Tech Used (0) 0 Bonus (5650) 5650 TOTAL SCORE: 6657 Bonus ------- Prayed to X0-1V1 5000 Major X0-1V1 Interference 650 Cogmind --------- Core Integrity 0/150 Matter 410/500 Energy 100/100 System Corruption 2% Temperature Cool (12) Movement Rolling (110) Ox2 Location -10/Subcaves Parts ------- > --- POWER (1) -------- (None) > --- PROPULSION (2) --- Light Treads Wheel > --- UTILITY (2) ------ Large Storage Unit Seismic Detector > --- WEAPON (2) ------- Subdweller Beam Cannon > --- INVENTORY (15) --- Flight Unit Flight Unit Small Storage Unit Structural Scanner Subdweller Optics Trap Extractor (0/4) X0-1V1's Piety Tracker Small Laser Light Assault Rifle Light Assault Rifle Battle Rifle Subdweller Machine Gun Subdweller Machine Gun Barrage Gun Mining Laser Peak State ------------ > --- POWER ------------ Subdweller Power Source > --- PROPULSION ------- Light Treads Light Treads > --- UTILITY ---------- Large Storage Unit Trap Extractor > --- WEAPON ----------- Battle Rifle Barrage Gun > --- INVENTORY -------- Flight Unit Flight Unit Heat Sink Small Storage Unit Subdweller Optics Seismic Detector X0-1V1's Piety Tracker Small Laser Small Laser Subdweller Beam Cannon Assault Rifle Light Assault Rifle Light Assault Rifle Subdweller Machine Gun Mining Laser [Rating: 15] Favorites ----------- Power Light Ion Engine Engine Light Ion Engine Propulsion Light Treads Treads Light Treads Wheel Wheel Utility Large Storage Unit Device Seismic Detector Storage Large Storage Unit Weapon Assault Rifle Energy Cannon Subdweller Beam Cannon Ballistic Gun Assault Rifle Build | -11 -10 -10 ------- Run | Yrd Mat Sub Slots Evolved . | . . . Power . | . . . Propulsion . | . . . Utility . | . . . Weapon . | . . . Parts Attached 18 | 6 4 8 Power 3 | 1 1 1 Engine 3 | 1 1 1 Core . | . . . Reactor . | . . . Propulsion 3 | 2 . 1 Treads 2 | 2 . . Leg . | . . . Wheel 1 | . . 1 Hover . | . . . Flight . | . . . Utility 6 | 1 3 2 Device 3 | . 1 2 Storage 3 | 1 2 . Processor . | . . . Hackware . | . . . Protection . | . . . Artifact . | . . . Weapon 6 | 2 . 4 Energy Gun . | . . . Energy Cannon 1 | . . 1 Ballistic Gun 5 | 2 . 3 Ballistic Cannon . | . . . Launcher . | . . . Special Weapon . | . . . Impact Weapon . | . . . Slashing Weapon . | . . . Piercing Weapon . | . . . Special Melee Weapon . | . . . Unidentified Prototypes . | . . . Parts Lost 5 | . . 5 Power 1 | . . 1 Propulsion 1 | . . 1 Utility 1 | . . 1 Weapon 2 | . . 2 Highest Loss Streak 3 | . . 3 To Critical Strikes . | . . . Average Backups 10 | 2 8 14 Power . | . . . Propulsion 1 | . 1 2 Utility 3 | 1 1 4 Weapon 5 | 1 4 7 Tool/Special . | . . . Unused Backups 13 | . 2 11 Power . | . . . Propulsion 2 | . . 2 Utility 2 | . 1 1 Weapon 9 | . 1 8 Tool/Special . | . . . Average Slot Usage (%) 96 | . 95 97 Engine 13 | . 14 13 Treads 27 | . 28 26 Device 11 | . 10 13 Storage 14 | . 14 14 Energy Cannon 4 | . . 8 Ballistic Gun 23 | . 28 19 Peak Build Rating 15 | 6 10 15 Average Rating 10 | 5 7 13 On Entrance 5 | . 6 10 Avg Prop Armor Cover (%) 14 | . . 14 Naked Turns . | . . . Heaviest Build 38 | 12 29 38 Greatest Support 40 | 40 40 40 Greatest Overweight (x) 3 | . . 3 Average Overweight (x) . | . . . Largest Inventory Capacity 15 | 8 15 15 Average Capacity 12 | 7 10 15 Most Carried 15 | 5 14 15 Average Carried 10 | 2 8 14 Final Capacity 15 | 8 15 15 Final Carried 15 | 5 14 15 Class Distribution -------------------- 100% | Mutant Dominant Class ---------------- Mutant | -10/Materials Mutant | -10/Subcaves Resources | -11 -10 -10 ----------- Run | Yrd Mat Sub Matter Collected 1077 | 332 325 420 Remotely . | . . . Salvage Created 892 | 127 388 377 Parts 63 | 13 25 25 Haulers Intercepted . | . . . Recyclers Shooed . | . . . Parts Field Recycled . | . . . Retrieved Matter . | . . . Parts Self-Destructed 12 | . . 12 Prevented . | . . . Parts Restored . | . . . Kills | -11 -10 -10 ------- Run | Yrd Mat Sub Combat Hostiles Destroyed 18 | . 11 7 Guns 17 | . 11 6 Cannons 1 | . . 1 Classes Destroyed 8 | 3 3 2 Worker 1 | 1 . . Tunneler 4 | 4 . . Recycler 2 | 1 1 . Operator 1 | . 1 . Swarmer 9 | . 6 3 Grunt 5 | . 5 . Artisan 1 | . . 1 Subdweller 4 | . . 4 Best Kill Streak 5 | 2 5 3 Combat Bots Only 4 | . 4 3 Max Kills in Single Turn 2 | 1 2 1 Gunslinging 1 | . 1 . Exploded . | . . . Melee . | . . . Uniques/NPCs Destroyed . | . . . Combat | -11 -10 -10 -------- Run | Yrd Mat Sub Hostile Shots Fired 107 | . 40 67 Missed 31 | . 10 21 Hits 76 | . 30 46 Projectile 76 | . 30 46 Critical Strikes 1 | . . 1 Damage Taken 991 | . 288 703 Core 199 | . 23 176 Absorbed by Shields 12 | . . 12 Core Remaining (%) 100 | 100 . . Volleys Fired 92 | 13 30 49 Largest 2 | 2 2 2 Hottest 108 | 40 40 108 Shots Fired 177 | 26 60 91 Gun 158 | 26 60 72 Cannon 19 | . . 19 Launcher . | . . . Special . | . . . Kinetic 158 | 26 60 72 Thermal 19 | . . 19 Explosive . | . . . Electromagnetic . | . . . Robot Hit Streak 29 | 3 11 29 Robot Miss Streak 6 | 6 2 3 Penetration Max . | . . . Secondary Targets 3 | . 2 1 Max Gunslinging Chain 1 | . 1 1 Shots Hit Robots 122 | 11 44 67 Core Hits 43 | 7 19 17 Critical Kills . | . . . Critical Parts Destroyed . | . . . Critical Strikes 1 | . . 1 Destroy 1 | . . 1 Melee Attacks . | . . . Impact . | . . . Slashing . | . . . Piercing . | . . . Sneak Attacks . | . . . Combat Hostiles . | . . . Follow-up Attacks . | . . . Damage Inflicted 1982 | 154 545 1283 Guns 1670 | 154 545 971 Cannons 312 | . . 312 Explosions . | . . . Melee . | . . . Ramming . | . . . Kinetic 1670 | 154 545 971 Thermal 312 | . . 312 Explosive . | . . . Electromagnetic . | . . . Impact . | . . . Slashing . | . . . Piercing . | . . . Highest Corruption 2 | . . 2 Average Corruption 2 | . . 2 Corruption Purged . | . . . Corruption Blocked . | . . . Effects 4 | . . 4 Energy Discharges 1 | . . 1 Parts Rejected 1 | . . 1 Data Loss (minor) 1 | . . 1 Data Loss (major) 1 | . . 1 Overload Shots . | . . . Overflow Damage . | . . . Projectiles . | . . . Explosions . | . . . Melee . | . . . Knockbacks . | . . . Impact . | . . . Kinetic . | . . . Secondary . | . . . Self-Inflicted Damage . | . . . Shots . | . . . Rammed . | . . . Targets Rammed . | . . . Kicked . | . . . Crushed . | . . . Highest Temperature 32 | . 12 32 Average Temperature 18 | . 8 19 Received Heat Transfer 248 | . 78 170 Siege Activations . | . . . Martial Activations . | . . . Shielding Activations . | . . . Robots Disrupted . | . . . Combat Hostiles . | . . . Robots Corrupted . | . . . Combat Hostiles . | . . . Parts Fried . | . . . Impact Corruptions . | . . . Robots Melted . | . . . Combat Hostiles . | . . . Parts Melted 1 | . . 1 Heat Transferred 407 | . . 407 Parts Sabotaged . | . . . Parts Stolen . | . . . Parts Stripped . | . . . Power Chain Reactions . | . . . Alert | -11 -10 -10 ------- Run | Yrd Mat Sub Maximum Alert Level 1 | . 1 . Low Security (%) 99 | 100 99 . Level 1 . | . . . Level 2 . | . . . Level 3 . | . . . Level 4 . | . . . Level 5 . | . . . High Security . | . . . Max Security . | . . . Peak Influence 201 | 5 201 . Initial 3 | . 3 . Average 88 | 1 117 . Influence Increases 513 | 30 413 70 Destroy 0b10 Robot/C 280 | . 220 60 Destroy 0b10 Robot/NC 40 | 30 10 . Destroy Leader 70 | . 60 10 Successful Hack 5 | . 5 . Destroy Structure 1 | . 1 . Lose Combat Pursuer 15 | . 15 . Miscellaneous 102 | . 102 . Influence Decreases 513 | 25 265 223 Entered New Map 76 | . 2 74 Time Decay 427 | 25 263 139 Lost Part 10 | . . 10 Squads Dispatched 4 | . 4 . Investigation 2 | . 2 . Extermination . | . . . Reinforcement 2 | . 2 . Assault . | . . . Garrison . | . . . Intercept . | . . . Searches Triggered . | . . . Construction Impeded . | . . . Haulers Reinforced . | . . . Active Scanning Responses . | . . . Cargo Convoy Interrupts . | . . . Stealth | -11 -10 -10 --------- Run | Yrd Mat Sub Distress Signals 1 | . 1 . Communications Jammed . | . . . Distress Signals . | . . . Times Spotted 30 | . 17 13 Peak Tracking Total 3 | . 3 3 Tactical Retreats 1 | . 1 . Traps | -11 -10 -10 ------- Run | Yrd Mat Sub Traps Triggered 2 | . 2 . Indirectly . | . . . Trap Hack Attempts . | . . . Triggered . | . . . Disarmed . | . . . Reprogrammed . | . . . Reused . | . . . Traps Extracted . | . . . Installed . | . . . Triggered . | . . . Machines | -11 -10 -10 ---------- Run | Yrd Mat Sub Machines Disabled . | . . . Max in Single Turn . | . . . Machines Repaired . | . . . Machines Dismantled . | . . . Machines Sabotaged . | . . . Overloaded Fab Kills . | . . . Hacking | -11 -10 -10 --------- Run | Yrd Mat Sub Machines Accessed 3 | . 2 1 Terminals 1 | . 1 . Fabricators . | . . . Repair Stations . | . . . Recycling Units 1 | . 1 . Scanalyzers . | . . . Garrison Access . | . . . Total Hacks 4 | . 3 1 Successful 3 | . 2 1 Failed 1 | . 1 . Catastrophic . | . . . Database Lockouts . | . . . Manual 1 | . 1 . Terminals 2 | . 2 . Fabricators . | . . . Repair Stations . | . . . Recycling Units 1 | . 1 . Scanalyzers . | . . . Garrison Access . | . . . Terminal Hacks 2 | . 1 1 Record 1 | . . 1 Zone Layout 1 | . 1 . Fabricator Hacks . | . . . Repair Station Hacks . | . . . Recycling Unit Hacks 1 | . 1 . Report Inventory 1 | . 1 . Scanalyzer . | . . . Garrison Access Hacks . | . . . Unauthorized Hacks . | . . . Terminals . | . . . Fabricators . | . . . Repair Stations . | . . . Recycling Units . | . . . Scanalyzers . | . . . Garrison Access . | . . . Data Cores Recovered . | . . . Used . | . . . Hacking Detections 1 | . 1 . Full Trace Events . | . . . Feedback Events . | . . . Feedback Blocked . | . . . Robot Schematics Acquired . | . . . Robots Built . | . . . Authchips . | . . . Time . | . . . Total Robot Build Rating . | . . . Part Schematics Acquired . | . . . Parts Built . | . . . Authchips . | . . . Time . | . . . Total Part Build Rating . | . . . Part Studies Acquired . | . . . Parts Repaired . | . . . Time . | . . . Parts Recycled . | . . . Recycled Matter . | . . . Retrieved Matter . | . . . Retrieved Components . | . . . Parts Scanalyzed . | . . . Part Schematics Acquired . | . . . Parts Damaged . | . . . Bothacking | -11 -10 -10 ------------ Run | Yrd Mat Sub Used RIF Installer . | . . . Robots Hacked . | . . . Non-combat . | . . . Combat . | . . . Robot Hacks Applied . | . . . Relay Couplers Released . | . . . Fabnet Peak Effective % . | . . . Robots Rewired . | . . . Allies Hacked . | . . . Hacks Repelled . | . . . Allies | -11 -10 -10 -------- Run | Yrd Mat Sub Total Allies . | . . . Largest Group . | . . . Highest-Rated Group . | . . . Highest-Rated Ally . | . . . Total Orders . | . . . Ally Attacks . | . . . Total Damage . | . . . Kills . | . . . Allies Corrupted . | . . . Allies Melted . | . . . X0-1V1 Amusement Gains 21 | . 21 . Good Acts 6 | . 3 3 Bad Acts 8 | . 1 7 Intel | -11 -10 -10 ------- Run | Yrd Mat Sub Active Infowar (turns) 786 | . 351 435 Optics 241 | . . 241 Seismic 545 | . 351 194 Robot Analysis Total . | . . . Derelict Logs Recovered . | . . . Drone Launches . | . . . Drone Recoveries . | . . . Exploration | -11 -10 -10 ------------- Run | Yrd Mat Sub Turns Passed 1537 | 197 593 747 Spaces Moved 680 | 96 248 336 Core 8 | 8 . . Treads 667 | 88 248 331 Legs . | . . . Wheels 5 | . . 5 Hover . | . . . Flight . | . . . Fastest Speed 50 | 50 160 110 Average Speed 159 | 150 160 160 Slowest Speed 240 | 160 160 240 Overloaded Moves . | . . . Propulsion Burnouts . | . . . Robots Hopped . | . . . Potential Cave-ins . | . . . Cave-ins Triggered . | . . . Exploration Rate (%) 20 | 5 32 24 Regions Visited 2 Branch Regions 1 Pre-discovered Areas . | . . . Known Exits Taken . | . . . Unknown Exits Taken 2 | 1 1 . Scrap Searched 3 | . . 3 Spaces Dug 5 | . . 5 Terrain Destroyed 5 | . . 5 Melee . | . . . Projectile 5 | . . 5 AOE . | . . . Terrain Rammed . | . . . Walls Destroyed . | . . . Machines Disabled . | . . . Actions | -11 -10 -10 --------- Run | Yrd Mat Sub Total 963 | 120 388 455 Wait 114 | . 83 31 Move 678 | 95 247 336 Hop . | . . . Pick Up 26 | 6 11 9 Fast Attach 9 | 5 . 4 Attach 9 | 1 5 3 Detach 5 | . 5 . Swap 13 | . 3 10 Drop 10 | . 4 6 Fire 92 | 13 30 49 Melee . | . . . Ram . | . . . Kick . | . . . Crush . | . . . Escape Stasis 7 | . . 7 Rewire . | . . . Trap . | . . . Miscellaneous . | . . . Route ------- -11/Scrapyard -10/Materials (discovered 3 exits: [*Mat] / [*Min] / *Sub) -10/Subcaves (discovered 2 exits: Mat / [*Rec]) History --------- Turn | Location | Event 33 | -11/Scrapyard | Discovered new exit (range 16) 198 | -11/Scrapyard | Entered Materials 199 | -10/Materials | Discovered new exit (range 8) 308 | -10/Materials | Build established: Mutant 398 | -10/Materials | Discovered new exit (range 11) 450 | -10/Materials | Prayed at D.C.S.S. Altar Unit 499 | -10/Materials | X0-1V1 added 0b10 threat records associated with you (minor) 668 | -10/Materials | X0-1V1 activates XOMVISION 716 | -10/Materials | Discovered new exit (range 11) 724 | -10/Materials | Matter capacity permanently improved by X0-1V1 (+200) 791 | -10/Materials | Entered Subcaves 792 | -10/Subcaves | Approached by a straggling Scientist 841 | -10/Subcaves | Disturbed a concealed Subdweller 1035 | -10/Subcaves | Core integrity restored by X0-1V1 (+22) 1101 | -10/Subcaves | Identified exit to Materials 1101 | -10/Subcaves | X0-1V1 revealed exit location to -8/Materials 1225 | -10/Subcaves | A swath of the cavern ceiling suddenly collapsed 1279 | -10/Subcaves | Shifting Twisted Machinery released Sub. Monowheel 1382 | -10/Subcaves | Visited Clippyterm 1464 | -10/Subcaves | Shifting Twisted Machinery released Sub. Laser 1498 | -10/Subcaves | Core integrity fell below 50% 1506 | -10/Subcaves | Core integrity fell below 20% 1524 | -10/Subcaves | Lost 3 parts (1p1n1u) 1537 | -10/Subcaves | Discovered new exit (range 5) 1537 | -10/Subcaves | X0-1V1 sent you into danger 1538 | -10/Subcaves | Destroyed by S-10 Pest with Light Assault Rifle Last Messages --------------- 01506_ Field strength at 65. 01507_ Field strength at 55. 01508_ Field strength at 45. 01513_ X0-1V1: "There's a penalty for shooting from the hip 'round these parts." (-6% ranged accuracy) 01513_ Disposable Heat Sink melted. 01513_ TP-EUQ(R) destroyed. 01516_ Field strength at 29. 01517_ Field strength at 19. 01518_ Field strength at 9. 01519_ Stasis field depleted. 01521_ Acquired Lgt. Treads. 01522_ Acquired 32 matter. 01533_ Acquired Structural Scanner. 01537_ EXIT=FOUND 01537_ X0-1V1: "Enjoy the ride!" 01538_ Barrage Gun destroyed. 01538_ S-10 Pest springs to life. 01538_ X0-1V1: "Huh? Did I miss anything?" Map ----- +----------------------------------------------------+ | ????????????????????????????????# #????????????? | | ????????????????????????????????# #????????????? | | ???????????????????????????????## " #????????????? | | ???????????????????????????????# ##???????????? | | ?????????????????????????????#### ""##??????????? | | ????????????????????????###### ! [""#??????????? | | ???????????????????????## " "#??????????? | | ????????????????????#### """""""" #??????????? | | ????????????????????# # #### "##"" #?????????? | | ????????????????????## ##?#" ###"## #?????????? | | ???????????????????## ##?# " " ###? " #????????? | | ?????????#?????????# #??# " " ???# #????????? | | ?????????? ????###### #?# " " ???# ???????? | | ??????????? ???# # ### " " ???# ??????? | | ?????????## ##### ### " ???# ?????? | | ?????????# # #?# ## " ## ##??? ????? | | ??????????# # ##?# ?## #?##????? ????? | | ????????????## # #?## ??# ???????? ##???? | | ???????????## ##??## ?? ????????##????? | | ???????????# #????##??? ??????????????? | | ???????????## #????????? #####??????????????? | | ????????????# ####????????##???????????????????? | | ???#######?## ##??????#####<####????????????????? | | ???#"""""### #########"""" """"#???????????????? | | ???#""X""## ## ##" " " "#???????????????? | | ???#" "# ##"@ t t "#???????????????? | | ???### ### ### ##s s#???????????????? | | ###### ### ##?# ##s s#???????????????? | | # # ##??## ###" "#???????????????? | | ##????# ##?#### ####???????????????? | | ##?????# #????? ?????????????????? | | ##?????## ##????? ????????????????? | | ### #??????# #?????? ???????????????? | | ##?# ##??????# ##?????? ??????????????? | | ##?####??????# ##??????? ?????????????? | | ##????????? ##????????? ????????????? | | # ######?? ??????????? ###???????????? | | ## #### ???????????? ##?????????????? | | ## ###### ???????????? #??????????????? | | # # ### ???????????? #??????????????? | | ###????????????? #??????????????? | | ##????????????? ????????????????? | | ## ### #???????????????????????????????? | | #### #?## #???????????????????????????????? | | ###?## #??#"""#??????????????????????????????? | | ####???# #?#""" #?????????????????????????????? | | ???????## ##"" #????????????????????????????? | | ????????#="""" #???????????????????????????? | | ????????#"""##########???????????????????????????? | | ????????#####????????????????????????????????????? | +----------------------------------------------------+ Best States ------------- Heat Dissipation 35 Energy Generation 15 Energy Capacity 200 Matter Stores 500 Matter Capacity 500 Sight Range 24 Terrain Scan Density 10 Evasion (%) 40 Recoil Reduction 2 Trap Extractor Capacity 4 Item Schematics ----------------- None Robot Schematics ------------------ None Fabricated ------------ Nothing Repaired ---------- Nothing Studied --------- None Alien Tech Used ----------------- None Achievements -------------- Chaos Is Inevitable Challenges ------------ None Game ------ Seed LinkedTrackerNukerbomber Manual? 0 Play Time 00:22:51 Cumulative 525.7 hours Start 2026.06.23 @ 14:34:20 End 2026.06.23 @ 15:01:02 Sessions 1 Manual Loads 0 Difficulty Rogue Special Mode None Game No. 194 Rogue 186 Adventurer 8 Explorer 0 Win Type - Total 34 Types 15/5/4/3/0/1/2/1/2/1 Lore% 91 Gallery% 87 Achievement% 84 Wizard Run 0 Options --------- Layout 2 ASCII 0 Keyboard 1 Movement Vi Keybinds 1 Fullscreen 2 Font 24/Smallcaps Map View 50x44 Zoom Use 0% Tactical HUD 1 Map Filters NONE Filters NONE Steam 1 RUN: 17cd627e-b95a-468f-973f-765c2f61948b